[Event "Titled Tuesday Blitz January 17 Early 2023"]
[White "Naroditsky, Daniel"]
[Black "Iljin, Timofey"]
[WhiteFideId "2026961"]
[BlackFideId "14110180"]
[WhiteElo "2618"]
[BlackElo "2329"]
[Result "1-0"]
[Round "01"]
[TimeControl "180+2"]
[Date "2023.01.17"]
[WhiteClock "0:01:28"]
[BlackClock "0:00:11"]

1. e4 {[%clk 0:03:00]}  e5 {[%clk 0:02:54]} 2. Nf3 {[%clk 0:03:01]}  Nc6 {[%clk 0:02:53]} 3. Bb5 {[%clk 0:03:01]}  a6 {[%clk 0:02:53]} 4. Ba4 {[%clk 0:03:02]}  Nf6 {[%clk 0:02:54]} 5. O-O {[%clk 0:03:02]}  b5 {[%clk 0:02:54]} 6. Bb3 {[%clk 0:03:03]}  Bc5 {[%clk 0:02:54]} 7. d3 {[%clk 0:03:03]}  d6 {[%clk 0:02:54]} 8. Nc3 {[%clk 0:03:00]}  h6 {[%clk 0:02:52]} 9. Nd5 {[%clk 0:03:01]}  Na5 {[%clk 0:02:42]} 10. d4 {[%clk 0:02:52]}  exd4 {[%clk 0:02:32]} 11. Nxd4 {[%clk 0:02:53]}  Nxb3 {[%clk 0:02:28]} 12. axb3 {[%clk 0:02:50]}  Bb7 {[%clk 0:02:16]} 13. Nf5 {[%clk 0:02:45]}  Nxd5 {[%clk 0:01:39]} 14. exd5 {[%clk 0:02:43]}  Qf6 {[%clk 0:01:02]} 15. Qg4 {[%clk 0:02:02]}  g6 {[%clk 0:00:14]} 16. Re1+ {[%clk 0:01:40]}  Kf8 {[%clk 0:00:14]} 17. Ne3 {[%clk 0:01:37]}  Re8 {[%clk 0:00:13]} 18. Bd2 {[%clk 0:01:36]}  h5 {[%clk 0:00:12]} 19. Qg3 {[%clk 0:01:28]}  Kg7 {[%clk 0:00:12]} 20. Bc3 {[%clk 0:01:27]}  Bd4 {[%clk 0:00:11]} 21. Bxd4 {[%clk 0:01:28]} 1-0


[Site "https://www.chess.com"]

[Event "Titled Tuesday Blitz January 17 Early 2023"]
[White "Biastoch, Bennet"]
[Black "Andreikin, Dmitry"]
[WhiteFideId "12939889"]
[BlackFideId "4158814"]
[WhiteElo "2257"]
[BlackElo "2729"]
[Result "0-1"]
[Round "01"]
[TimeControl "180+2"]
[Date "2023.01.17"]
[WhiteClock "0:01:10"]
[BlackClock "0:02:00"]

1. e4 {[%clk 0:02:59]}  c5 {[%clk 0:02:58]} 2. Nf3 {[%clk 0:02:59]}  Nc6 {[%clk 0:02:58]} 3. d4 {[%clk 0:02:59]}  cxd4 {[%clk 0:02:57]} 4. Nxd4 {[%clk 0:03:00]}  Qb6 {[%clk 0:02:58]} 5. Nb3 {[%clk 0:02:58]}  Nf6 {[%clk 0:02:57]} 6. Nc3 {[%clk 0:02:58]}  e6 {[%clk 0:02:56]} 7. Be3 {[%clk 0:02:59]}  Qc7 {[%clk 0:02:55]} 8. Be2 {[%clk 0:02:59]}  a6 {[%clk 0:02:54]} 9. O-O {[%clk 0:02:58]}  Bb4 {[%clk 0:02:52]} 10. Bd3 {[%clk 0:02:47]}  O-O {[%clk 0:02:51]} 11. Ne2 {[%clk 0:02:45]}  d5 {[%clk 0:02:50]} 12. c3 {[%clk 0:02:40]}  Bd6 {[%clk 0:02:48]} 13. exd5 {[%clk 0:02:37]}  Bxh2+ {[%clk 0:02:46]} 14. Kh1 {[%clk 0:02:36]}  Nxd5 {[%clk 0:02:46]} 15. g3 {[%clk 0:02:33]}  Nxe3 {[%clk 0:02:44]} 16. fxe3 {[%clk 0:02:32]}  Bxg3 {[%clk 0:02:44]} 17. Rg1 {[%clk 0:02:32]}  Be5 {[%clk 0:02:36]} 18. Qf1 {[%clk 0:02:29]}  g6 {[%clk 0:02:34]} 19. Qh3 {[%clk 0:02:22]}  b5 {[%clk 0:02:33]} 20. Rg4 {[%clk 0:01:55]}  Bb7 {[%clk 0:02:30]} 21. Kg1 {[%clk 0:01:55]}  Rad8 {[%clk 0:02:27]} 22. Nbd4 {[%clk 0:01:53]}  Nxd4 {[%clk 0:02:14]} 23. exd4 {[%clk 0:01:53]}  Bg7 {[%clk 0:02:14]} 24. Rf1 {[%clk 0:01:49]}  e5 {[%clk 0:02:13]} 25. Rh4 {[%clk 0:01:47]}  exd4 {[%clk 0:02:13]} 26. Rxh7 {[%clk 0:01:43]}  dxc3 {[%clk 0:02:13]} 27. Nf4 {[%clk 0:01:27]}  Rxd3 {[%clk 0:02:08]} 28. Rxg7+ {[%clk 0:01:10]}  Kxg7 {[%clk 0:02:07]} 29. Qxd3 {[%clk 0:01:11]}  Qc5+ {[%clk 0:02:05]} 30. Kh2 {[%clk 0:01:10]}  Rh8+ {[%clk 0:02:00]} 31. Kg3 {[%clk 0:01:10]}  Qg5+ {[%clk 0:02:00]} 0-1


[Site "https://www.chess.com"]

[Event "Titled Tuesday Blitz January 17 Early 2023"]
[White "Daneshvar, Bardiya"]
[Black "Goldin, Alexander"]
[WhiteFideId "12576468"]
[BlackFideId "2019540"]
[WhiteElo "2540"]
[BlackElo "2542"]
[Result "0-1"]
[Round "01"]
[TimeControl "180+2"]
[Date "2023.01.17"]
[WhiteClock "0:00:05"]
[BlackClock "0:00:11"]

1. b3 {[%clk 0:03:00]}  d5 {[%clk 0:02:59]} 2. Bb2 {[%clk 0:03:01]}  c5 {[%clk 0:02:59]} 3. e3 {[%clk 0:03:00]}  a6 {[%clk 0:02:59]} 4. Nf3 {[%clk 0:02:59]}  Nc6 {[%clk 0:03:00]} 5. d4 {[%clk 0:03:00]}  cxd4 {[%clk 0:02:58]} 6. Nxd4 {[%clk 0:03:01]}  e6 {[%clk 0:02:58]} 7. Nxc6 {[%clk 0:02:59]}  bxc6 {[%clk 0:02:57]} 8. Be2 {[%clk 0:02:57]}  Nf6 {[%clk 0:02:57]} 9. O-O {[%clk 0:02:57]}  Bd6 {[%clk 0:02:58]} 10. c4 {[%clk 0:02:58]}  O-O {[%clk 0:02:58]} 11. Nc3 {[%clk 0:02:58]}  Bb7 {[%clk 0:02:52]} 12. Rc1 {[%clk 0:02:58]}  Qe7 {[%clk 0:02:51]} 13. Qc2 {[%clk 0:02:55]}  Rac8 {[%clk 0:02:48]} 14. e4 {[%clk 0:02:53]}  dxe4 {[%clk 0:02:33]} 15. Nxe4 {[%clk 0:02:52]}  Nxe4 {[%clk 0:02:34]} 16. Qxe4 {[%clk 0:02:53]}  c5 {[%clk 0:02:34]} 17. Qe3 {[%clk 0:02:49]}  e5 {[%clk 0:02:11]} 18. Rcd1 {[%clk 0:02:46]}  f5 {[%clk 0:01:51]} 19. f4 {[%clk 0:02:44]}  e4 {[%clk 0:01:26]} 20. Rd2 {[%clk 0:02:38]}  Rcd8 {[%clk 0:01:22]} 21. Rfd1 {[%clk 0:02:35]}  Bc7 {[%clk 0:01:21]} 22. g3 {[%clk 0:02:31]}  Rxd2 {[%clk 0:01:19]} 23. Rxd2 {[%clk 0:02:32]}  Rd8 {[%clk 0:01:19]} 24. Kf2 {[%clk 0:02:30]}  Rxd2 {[%clk 0:01:13]} 25. Qxd2 {[%clk 0:02:31]}  Qd6 {[%clk 0:01:14]} 26. Qxd6 {[%clk 0:02:27]}  Bxd6 {[%clk 0:01:14]} 27. Bc3 {[%clk 0:02:27]}  Kf7 {[%clk 0:01:13]} 28. Ke3 {[%clk 0:02:26]}  g6 {[%clk 0:01:13]} 29. a3 {[%clk 0:02:25]}  Bc6 {[%clk 0:01:00]} 30. b4 {[%clk 0:02:25]}  Ba4 {[%clk 0:00:56]} 31. g4 {[%clk 0:02:13]}  Ke6 {[%clk 0:00:55]} 32. b5 {[%clk 0:02:06]}  axb5 {[%clk 0:00:53]} 33. cxb5 {[%clk 0:02:07]}  Bb3 {[%clk 0:00:53]} 34. b6 {[%clk 0:02:04]}  Kd7 {[%clk 0:00:53]} 35. Bb5+ {[%clk 0:02:03]}  Kc8 {[%clk 0:00:48]} 36. a4 {[%clk 0:02:01]}  fxg4 {[%clk 0:00:33]} 37. Kxe4 {[%clk 0:01:59]}  h5 {[%clk 0:00:30]} 38. Bc6 {[%clk 0:01:47]}  h4 {[%clk 0:00:30]} 39. a5 {[%clk 0:01:45]}  Bc4 {[%clk 0:00:30]} 40. Be1 {[%clk 0:01:39]}  h3 {[%clk 0:00:29]} 41. Bg3 {[%clk 0:01:05]}  Bb8 {[%clk 0:00:27]} 42. Ke3 {[%clk 0:01:00]}  Bd6 {[%clk 0:00:26]} 43. Be4 {[%clk 0:00:58]}  Ba6 {[%clk 0:00:14]} 44. Bxg6 {[%clk 0:00:57]}  c4 {[%clk 0:00:13]} 45. Bf5+ {[%clk 0:00:54]}  Kb7 {[%clk 0:00:12]} 46. Bxg4 {[%clk 0:00:52]}  Bc5+ {[%clk 0:00:12]} 47. Ke2 {[%clk 0:00:35]}  c3+ {[%clk 0:00:12]} 48. Kd1 {[%clk 0:00:35]}  Bd3 {[%clk 0:00:12]} 49. Bf3+ {[%clk 0:00:30]}  Ka6 {[%clk 0:00:12]} 50. b7 {[%clk 0:00:16]}  Be3 {[%clk 0:00:12]} 51. b8=Q {[%clk 0:00:04]}  c2+ {[%clk 0:00:12]} 52. Ke1 {[%clk 0:00:04]}  c1=Q+ {[%clk 0:00:12]} 53. Bd1 {[%clk 0:00:05]}  Qd2# {[%clk 0:00:11]} 0-1


[Site "https://www.chess.com"]

[Event "Titled Tuesday Blitz January 17 Early 2023"]
[White "Terry, Renato"]
[Black "Vovk, Orest"]
[WhiteFideId "3803457"]
[BlackFideId "14113490"]
[WhiteElo "2520"]
[BlackElo "2315"]
[Result "1/2-1/2"]
[Round "01"]
[TimeControl "180+2"]
[Date "2023.01.17"]
[WhiteClock "0:00:03"]
[BlackClock "0:00:18"]

1. e4 {[%clk 0:02:59]}  g5 {[%clk 0:02:55]} 2. d4 {[%clk 0:02:57]}  h6 {[%clk 0:02:51]} 3. Nc3 {[%clk 0:02:49]}  Bg7 {[%clk 0:02:49]} 4. f4 {[%clk 0:02:44]}  c5 {[%clk 0:02:48]} 5. dxc5 {[%clk 0:02:37]}  Bxc3+ {[%clk 0:02:43]} 6. bxc3 {[%clk 0:02:37]}  Nc6 {[%clk 0:02:43]} 7. fxg5 {[%clk 0:02:29]}  hxg5 {[%clk 0:02:41]} 8. Bxg5 {[%clk 0:02:28]}  Qa5 {[%clk 0:02:39]} 9. Qd2 {[%clk 0:02:26]}  Qxc5 {[%clk 0:02:29]} 10. Nf3 {[%clk 0:02:26]}  d6 {[%clk 0:02:27]} 11. Rb1 {[%clk 0:02:24]}  a6 {[%clk 0:02:24]} 12. a4 {[%clk 0:02:20]}  Bg4 {[%clk 0:02:23]} 13. Rxb7 {[%clk 0:02:14]}  Bxf3 {[%clk 0:02:22]} 14. gxf3 {[%clk 0:02:13]}  Ne5 {[%clk 0:02:22]} 15. Be2 {[%clk 0:02:12]}  Rxh2 {[%clk 0:02:16]} 16. Rf1 {[%clk 0:01:59]}  Nc4 {[%clk 0:01:53]} 17. Qd5 {[%clk 0:01:42]}  Ne3 {[%clk 0:00:53]} 18. Rxe7+ {[%clk 0:01:02]}  Nxe7 {[%clk 0:00:52]} 19. Qxa8+ {[%clk 0:01:02]}  Nc8 {[%clk 0:00:33]} 20. Bxe3 {[%clk 0:01:01]}  Qxe3 {[%clk 0:00:23]} 21. Qxc8+ {[%clk 0:00:59]}  Ke7 {[%clk 0:00:24]} 22. Qc7+ {[%clk 0:00:55]}  Ke8 {[%clk 0:00:19]} 23. Qc6+ {[%clk 0:00:35]}  Ke7 {[%clk 0:00:18]} 24. Qc7+ {[%clk 0:00:22]}  Ke8 {[%clk 0:00:18]} 25. Qc6+ {[%clk 0:00:05]}  Ke7 {[%clk 0:00:18]} 26. Qc7+ {[%clk 0:00:03]} 1/2-1/2


[Site "https://www.chess.com"]

[Event "Titled Tuesday Blitz January 17 Early 2023"]
[White "Vivas Zamora, Fabian Ernesto"]
[Black "Vokhidov, Shamsiddin"]
[WhiteFideId "3902480"]
[BlackFideId "14204223"]
[WhiteElo "2346"]
[BlackElo "2586"]
[Result "0-1"]
[Round "01"]
[TimeControl "180+2"]
[Date "2023.01.17"]
[WhiteClock "0:00:01"]
[BlackClock "0:01:21"]

1. e4 {[%clk 0:02:55]}  Nf6 {[%clk 0:03:00]} 2. e5 {[%clk 0:02:55]}  Nd5 {[%clk 0:03:01]} 3. d4 {[%clk 0:02:56]}  d6 {[%clk 0:03:01]} 4. Nf3 {[%clk 0:02:55]}  dxe5 {[%clk 0:03:01]} 5. Nxe5 {[%clk 0:02:54]}  c6 {[%clk 0:03:02]} 6. Bc4 {[%clk 0:02:42]}  Bf5 {[%clk 0:03:01]} 7. O-O {[%clk 0:02:37]}  Nd7 {[%clk 0:02:59]} 8. Nf3 {[%clk 0:02:33]}  e6 {[%clk 0:02:58]} 9. Bb3 {[%clk 0:02:29]}  Bd6 {[%clk 0:02:57]} 10. h3 {[%clk 0:01:49]}  O-O {[%clk 0:02:56]} 11. Re1 {[%clk 0:01:45]}  b5 {[%clk 0:02:53]} 12. a4 {[%clk 0:01:36]}  Qc7 {[%clk 0:02:50]} 13. Nbd2 {[%clk 0:01:30]}  a6 {[%clk 0:02:47]} 14. Ne4 {[%clk 0:01:28]}  Be7 {[%clk 0:02:46]} 15. c3 {[%clk 0:01:26]}  c5 {[%clk 0:02:45]} 16. axb5 {[%clk 0:01:08]}  c4 {[%clk 0:02:29]} 17. b6 {[%clk 0:00:33]}  N7xb6 {[%clk 0:02:28]} 18. Bc2 {[%clk 0:00:33]}  h6 {[%clk 0:02:29]} 19. Ng3 {[%clk 0:00:31]}  Bxc2 {[%clk 0:02:27]} 20. Qxc2 {[%clk 0:00:32]}  a5 {[%clk 0:02:26]} 21. Ne5 {[%clk 0:00:31]}  a4 {[%clk 0:02:25]} 22. Re4 {[%clk 0:00:30]}  f5 {[%clk 0:02:14]} 23. Re1 {[%clk 0:00:29]}  Bd6 {[%clk 0:02:15]} 24. Nh5 {[%clk 0:00:26]}  Nd7 {[%clk 0:02:12]} 25. Nxd7 {[%clk 0:00:24]}  Qxd7 {[%clk 0:02:13]} 26. Qe2 {[%clk 0:00:24]}  Rfe8 {[%clk 0:02:01]} 27. Qxc4 {[%clk 0:00:24]}  a3 {[%clk 0:01:57]} 28. bxa3 {[%clk 0:00:23]}  Rac8 {[%clk 0:01:57]} 29. Qe2 {[%clk 0:00:21]}  Nxc3 {[%clk 0:01:57]} 30. Qf3 {[%clk 0:00:21]}  Nd5 {[%clk 0:01:54]} 31. Nf4 {[%clk 0:00:20]}  Rxc1 {[%clk 0:01:53]} 32. Raxc1 {[%clk 0:00:16]}  Nxf4 {[%clk 0:01:53]} 33. Ra1 {[%clk 0:00:08]}  Qa4 {[%clk 0:01:48]} 34. g3 {[%clk 0:00:07]}  Nxh3+ {[%clk 0:01:47]} 35. Kg2 {[%clk 0:00:08]}  Ng5 {[%clk 0:01:48]} 36. Qd3 {[%clk 0:00:04]}  Rd8 {[%clk 0:01:45]} 37. d5 {[%clk 0:00:03]}  Bf8 {[%clk 0:01:41]} 38. f4 {[%clk 0:00:02]}  Rxd5 {[%clk 0:01:39]} 39. Qe2 {[%clk 0:00:02]}  Ne4 {[%clk 0:01:37]} 40. Qf3 {[%clk 0:00:03]}  Rb5 {[%clk 0:01:25]} 41. Re2 {[%clk 0:00:03]}  Rb3 {[%clk 0:01:25]} 42. Re3 {[%clk 0:00:02]}  Rxe3 {[%clk 0:01:23]} 43. Qxe3 {[%clk 0:00:02]}  Qc2+ {[%clk 0:01:23]} 44. Kh3 {[%clk 0:00:02]}  Nf2+ {[%clk 0:01:23]} 45. Kh4 {[%clk 0:00:01]}  Be7+ {[%clk 0:01:20]} 46. Kh5 {[%clk 0:00:01]}  Ne4 {[%clk 0:01:21]} 0-1


[Site "https://www.chess.com"]

[Event "Titled Tuesday Blitz January 17 Early 2023"]
[White "Lu, Shanglei"]
[Black "Shuvalov, Evgenij"]
[WhiteFideId "8603332"]
[BlackFideId "4187237"]
[WhiteElo "2596"]
[BlackElo "2038"]
[Result "1-0"]
[Round "01"]
[TimeControl "180+2"]
[Date "2023.01.17"]
[WhiteClock "0:01:12"]
[BlackClock "0:00:06"]

1. e4 {[%clk 0:02:58]}  e6 {[%clk 0:02:59]} 2. d4 {[%clk 0:02:57]}  d5 {[%clk 0:02:59]} 3. e5 {[%clk 0:02:57]}  c5 {[%clk 0:02:59]} 4. c3 {[%clk 0:02:58]}  Nc6 {[%clk 0:03:00]} 5. Nf3 {[%clk 0:02:58]}  Qb6 {[%clk 0:03:00]} 6. a3 {[%clk 0:02:59]}  Bd7 {[%clk 0:02:56]} 7. b4 {[%clk 0:02:58]}  cxd4 {[%clk 0:02:56]} 8. cxd4 {[%clk 0:02:59]}  Rc8 {[%clk 0:02:57]} 9. Be3 {[%clk 0:02:49]}  Nh6 {[%clk 0:02:55]} 10. Bd3 {[%clk 0:02:50]}  Ng4 {[%clk 0:02:55]} 11. O-O {[%clk 0:02:48]}  Nxe3 {[%clk 0:02:52]} 12. fxe3 {[%clk 0:02:49]}  Be7 {[%clk 0:02:53]} 13. Qe1 {[%clk 0:02:44]}  O-O {[%clk 0:02:47]} 14. Nc3 {[%clk 0:02:45]}  Nb8 {[%clk 0:02:25]} 15. Kh1 {[%clk 0:02:14]}  Rc7 {[%clk 0:02:14]} 16. e4 {[%clk 0:01:59]}  Rfc8 {[%clk 0:02:13]} 17. Rc1 {[%clk 0:01:54]}  dxe4 {[%clk 0:01:57]} 18. Qxe4 {[%clk 0:01:53]}  g6 {[%clk 0:01:52]} 19. Qf4 {[%clk 0:01:37]}  Rxc3 {[%clk 0:00:57]} 20. Rxc3 {[%clk 0:01:35]}  Rxc3 {[%clk 0:00:58]} 21. Ng5 {[%clk 0:01:35]}  Be8 {[%clk 0:00:44]} 22. Nxf7 {[%clk 0:01:24]}  Rxd3 {[%clk 0:00:40]} 23. Nh6+ {[%clk 0:01:16]}  Kg7 {[%clk 0:00:40]} 24. Ng4 {[%clk 0:01:17]}  Nd7 {[%clk 0:00:19]} 25. Nf6 {[%clk 0:01:11]}  Bxf6 {[%clk 0:00:15]} 26. exf6+ {[%clk 0:01:11]}  Kf7 {[%clk 0:00:16]} 27. Qh6 {[%clk 0:01:11]}  Nxf6 {[%clk 0:00:12]} 28. Qxh7+ {[%clk 0:01:11]}  Kf8 {[%clk 0:00:06]} 29. Rxf6+ {[%clk 0:01:12]}  Bf7 {[%clk 0:00:06]} 30. Qxf7# {[%clk 0:01:12]} 1-0


[Site "https://www.chess.com"]

[Event "Titled Tuesday Blitz January 17 Early 2023"]
[White "Dominguez Perez, Leinier"]
[Black "Ansh M Shah"]
[WhiteFideId "3503240"]
[BlackFideId "25033379"]
[WhiteElo "2739"]
[BlackElo "2171"]
[Result "0-1"]
[Round "01"]
[TimeControl "180+2"]
[Date "2023.01.17"]
[WhiteClock "0:00:02"]
[BlackClock "0:00:11"]

1. e4 {[%clk 0:02:59]}  c6 {[%clk 0:03:00]} 2. d4 {[%clk 0:02:58]}  d5 {[%clk 0:03:00]} 3. e5 {[%clk 0:02:59]}  Bf5 {[%clk 0:02:59]} 4. Nf3 {[%clk 0:02:58]}  e6 {[%clk 0:02:59]} 5. Be2 {[%clk 0:02:59]}  Nd7 {[%clk 0:02:58]} 6. O-O {[%clk 0:02:58]}  Ne7 {[%clk 0:02:58]} 7. Nbd2 {[%clk 0:02:57]}  h6 {[%clk 0:02:58]} 8. Nb3 {[%clk 0:02:56]}  a6 {[%clk 0:02:57]} 9. a4 {[%clk 0:02:47]}  c5 {[%clk 0:02:56]} 10. dxc5 {[%clk 0:02:27]}  Nc6 {[%clk 0:02:55]} 11. Be3 {[%clk 0:02:27]}  Ndxe5 {[%clk 0:02:52]} 12. Nxe5 {[%clk 0:02:27]}  Nxe5 {[%clk 0:02:53]} 13. Nd4 {[%clk 0:02:27]}  Bg6 {[%clk 0:02:47]} 14. b4 {[%clk 0:02:27]}  Be7 {[%clk 0:02:41]} 15. c3 {[%clk 0:02:17]}  O-O {[%clk 0:02:37]} 16. f4 {[%clk 0:02:10]}  Nd7 {[%clk 0:02:29]} 17. f5 {[%clk 0:02:10]}  exf5 {[%clk 0:02:28]} 18. Nxf5 {[%clk 0:02:10]}  Bf6 {[%clk 0:02:19]} 19. Qxd5 {[%clk 0:01:34]}  Bxf5 {[%clk 0:01:52]} 20. Rxf5 {[%clk 0:01:08]}  Qe7 {[%clk 0:01:28]} 21. Qd2 {[%clk 0:01:01]}  Rfe8 {[%clk 0:01:17]} 22. Kf2 {[%clk 0:01:00]}  Rad8 {[%clk 0:01:08]} 23. Bd4 {[%clk 0:00:39]}  Bxd4+ {[%clk 0:00:45]} 24. cxd4 {[%clk 0:00:38]}  Nf6 {[%clk 0:00:46]} 25. Bf3 {[%clk 0:00:34]}  Ne4+ {[%clk 0:00:46]} 26. Bxe4 {[%clk 0:00:34]}  Qxe4 {[%clk 0:00:47]} 27. Rf4 {[%clk 0:00:33]}  Qd5 {[%clk 0:00:32]} 28. Rd1 {[%clk 0:00:25]}  Re7 {[%clk 0:00:26]} 29. Qd3 {[%clk 0:00:14]}  Rde8 {[%clk 0:00:25]} 30. Qf3 {[%clk 0:00:06]}  Qa2+ {[%clk 0:00:12]} 31. Kf1 {[%clk 0:00:07]}  Qxa4 {[%clk 0:00:13]} 32. d5 {[%clk 0:00:03]}  Qb5+ {[%clk 0:00:11]} 33. Kf2 {[%clk 0:00:02]}  Re2+ {[%clk 0:00:11]} 0-1


[Site "https://www.chess.com"]

[Event "Titled Tuesday Blitz January 17 Early 2023"]
[White "Balabayeva, Xeniya"]
[Black "Esipenko, Andrey"]
[WhiteFideId "13719688"]
[BlackFideId "24175439"]
[WhiteElo "2191"]
[BlackElo "2679"]
[Result "1-0"]
[Round "01"]
[TimeControl "180+2"]
[Date "2023.01.17"]
[WhiteClock "0:00:04"]
[BlackClock "0:00:02"]

1. e4 {[%clk 0:02:56]}  c6 {[%clk 0:02:55]} 2. d4 {[%clk 0:02:56]}  d5 {[%clk 0:02:55]} 3. Nd2 {[%clk 0:02:57]}  dxe4 {[%clk 0:02:53]} 4. Nxe4 {[%clk 0:02:57]}  Nf6 {[%clk 0:02:54]} 5. Nxf6+ {[%clk 0:02:57]}  exf6 {[%clk 0:02:55]} 6. c3 {[%clk 0:02:57]}  Bd6 {[%clk 0:02:55]} 7. Bd3 {[%clk 0:02:57]}  O-O {[%clk 0:02:55]} 8. Ne2 {[%clk 0:02:57]}  Re8 {[%clk 0:02:55]} 9. Qc2 {[%clk 0:02:57]}  f5 {[%clk 0:02:53]} 10. Bxf5 {[%clk 0:02:31]}  Bxf5 {[%clk 0:02:54]} 11. Qxf5 {[%clk 0:02:31]}  Nd7 {[%clk 0:02:55]} 12. Qd3 {[%clk 0:02:25]}  Qe7 {[%clk 0:02:51]} 13. h3 {[%clk 0:02:02]}  Nb6 {[%clk 0:02:44]} 14. Bd2 {[%clk 0:01:47]}  Nd5 {[%clk 0:02:25]} 15. Kf1 {[%clk 0:01:30]}  b5 {[%clk 0:01:48]} 16. Re1 {[%clk 0:01:21]}  Qf6 {[%clk 0:01:46]} 17. g3 {[%clk 0:01:19]}  Re6 {[%clk 0:01:39]} 18. Kg2 {[%clk 0:01:18]}  Rae8 {[%clk 0:01:40]} 19. Rhf1 {[%clk 0:01:15]}  a5 {[%clk 0:00:58]} 20. Ng1 {[%clk 0:01:10]}  a4 {[%clk 0:00:56]} 21. Nf3 {[%clk 0:01:00]}  h6 {[%clk 0:00:56]} 22. Rxe6 {[%clk 0:00:57]}  Rxe6 {[%clk 0:00:55]} 23. Re1 {[%clk 0:00:56]}  Rxe1 {[%clk 0:00:54]} 24. Nxe1 {[%clk 0:00:54]}  Qe6 {[%clk 0:00:55]} 25. b3 {[%clk 0:00:25]}  Nb6 {[%clk 0:00:44]} 26. Qf3 {[%clk 0:00:20]}  Bf8 {[%clk 0:00:32]} 27. Nd3 {[%clk 0:00:15]}  Nd5 {[%clk 0:00:19]} 28. c4 {[%clk 0:00:11]}  bxc4 {[%clk 0:00:18]} 29. bxc4 {[%clk 0:00:11]}  Nb6 {[%clk 0:00:19]} 30. c5 {[%clk 0:00:07]}  Nd5 {[%clk 0:00:11]} 31. a3 {[%clk 0:00:05]}  Be7 {[%clk 0:00:06]} 32. Nf4 {[%clk 0:00:05]}  Nxf4+ {[%clk 0:00:05]} 33. Bxf4 {[%clk 0:00:05]}  Bf6 {[%clk 0:00:05]} 34. Be3 {[%clk 0:00:03]}  h5 {[%clk 0:00:02]} 35. g4 {[%clk 0:00:03]}  hxg4 {[%clk 0:00:02]} 36. Qxg4 {[%clk 0:00:04]} 1-0


[Site "https://www.chess.com"]

[Event "Titled Tuesday Blitz January 17 Early 2023"]
[White "Timofeev, Artyom"]
[Black "Kuznecovs, Nikita"]
[WhiteFideId "4140419"]
[BlackFideId "11604557"]
[WhiteElo "2567"]
[BlackElo "2287"]
[Result "1-0"]
[Round "01"]
[TimeControl "180+2"]
[Date "2023.01.17"]
[WhiteClock "0:00:08"]
[BlackClock "0:00:07"]

1. e4 {[%clk 0:02:59]}  e6 {[%clk 0:02:58]} 2. Qe2 {[%clk 0:02:58]}  Be7 {[%clk 0:02:56]} 3. Nf3 {[%clk 0:02:53]}  d5 {[%clk 0:02:57]} 4. d3 {[%clk 0:02:51]}  Nf6 {[%clk 0:02:56]} 5. g3 {[%clk 0:02:50]}  b6 {[%clk 0:02:54]} 6. exd5 {[%clk 0:02:48]}  exd5 {[%clk 0:02:54]} 7. Bg2 {[%clk 0:02:48]}  O-O {[%clk 0:02:54]} 8. O-O {[%clk 0:02:48]}  Bb7 {[%clk 0:02:54]} 9. Bf4 {[%clk 0:02:43]}  Nbd7 {[%clk 0:02:54]} 10. Nbd2 {[%clk 0:02:41]}  Re8 {[%clk 0:02:54]} 11. Qd1 {[%clk 0:02:38]}  Nc5 {[%clk 0:02:48]} 12. Be3 {[%clk 0:02:35]}  Ng4 {[%clk 0:02:45]} 13. Re1 {[%clk 0:02:18]}  Nxe3 {[%clk 0:02:42]} 14. Rxe3 {[%clk 0:02:18]}  Bf6 {[%clk 0:02:43]} 15. Rxe8+ {[%clk 0:02:12]}  Qxe8 {[%clk 0:02:44]} 16. d4 {[%clk 0:02:11]}  Ne6 {[%clk 0:02:35]} 17. c3 {[%clk 0:02:09]}  c5 {[%clk 0:02:30]} 18. dxc5 {[%clk 0:02:05]}  bxc5 {[%clk 0:02:29]} 19. h4 {[%clk 0:02:01]}  Rd8 {[%clk 0:02:18]} 20. Qb3 {[%clk 0:01:59]}  Ba8 {[%clk 0:02:13]} 21. Re1 {[%clk 0:01:58]}  d4 {[%clk 0:01:33]} 22. cxd4 {[%clk 0:01:56]}  cxd4 {[%clk 0:01:31]} 23. Nc4 {[%clk 0:01:47]}  Qc6 {[%clk 0:01:23]} 24. h5 {[%clk 0:01:32]}  Nc5 {[%clk 0:01:10]} 25. Qa3 {[%clk 0:01:27]}  Qd5 {[%clk 0:01:03]} 26. Nce5 {[%clk 0:01:13]}  d3 {[%clk 0:00:46]} 27. Ng4 {[%clk 0:00:37]}  Be7 {[%clk 0:00:30]} 28. Rxe7 {[%clk 0:00:22]}  d2 {[%clk 0:00:30]} 29. Ne3 {[%clk 0:00:23]}  d1=Q+ {[%clk 0:00:27]} 30. Nxd1 {[%clk 0:00:23]}  Qxd1+ {[%clk 0:00:27]} 31. Ne1 {[%clk 0:00:19]}  Nd3 {[%clk 0:00:20]} 32. Qc3 {[%clk 0:00:15]}  Kf8 {[%clk 0:00:10]} 33. Re3 {[%clk 0:00:13]}  Nxe1 {[%clk 0:00:08]} 34. Rxe1 {[%clk 0:00:13]}  Qd6 {[%clk 0:00:07]} 35. Bxa8 {[%clk 0:00:12]}  Rxa8 {[%clk 0:00:08]} 36. Qe5 {[%clk 0:00:09]}  Qxe5 {[%clk 0:00:07]} 37. Rxe5 {[%clk 0:00:08]}  Rb8 {[%clk 0:00:08]} 38. b3 {[%clk 0:00:08]}  Rb6 {[%clk 0:00:07]} 39. Ra5 {[%clk 0:00:08]}  a6 {[%clk 0:00:08]} 40. Kg2 {[%clk 0:00:09]}  Ke7 {[%clk 0:00:08]} 41. Kf3 {[%clk 0:00:09]}  Ke6 {[%clk 0:00:09]} 42. Ke4 {[%clk 0:00:08]}  g6 {[%clk 0:00:08]} 43. h6 {[%clk 0:00:08]}  f5+ {[%clk 0:00:08]} 44. Kd4 {[%clk 0:00:07]}  Kf6 {[%clk 0:00:08]} 45. f4 {[%clk 0:00:08]}  g5 {[%clk 0:00:08]} 46. Kc5 {[%clk 0:00:08]}  Re6 {[%clk 0:00:08]} 47. b4 {[%clk 0:00:07]}  g4 {[%clk 0:00:07]} 48. a4 {[%clk 0:00:07]}  Kg6 {[%clk 0:00:07]} 49. b5 {[%clk 0:00:07]}  axb5 {[%clk 0:00:07]} 50. axb5 {[%clk 0:00:08]}  Kxh6 {[%clk 0:00:08]} 51. b6 {[%clk 0:00:08]}  Re2 {[%clk 0:00:08]} 52. b7 {[%clk 0:00:08]}  Re8 {[%clk 0:00:07]} 53. Rb5 {[%clk 0:00:07]}  Rb8 {[%clk 0:00:07]} 54. Kd6 {[%clk 0:00:08]} 1-0


[Site "https://www.chess.com"]